fUSD/lending_fUSD_20260516
["ID","MTS","AMOUNT","RATE_DAILY","PERIOD"]
[422353323,1778863851000,-151.0,0.0003013,7]
[422353320,1778863851000,-356.273201,0.0003013,7]
[422353327,1778863851000,-151.0,0.0003013,7]
[422353326,1778863851000,-151.0,0.0003013,7]
[422353329,1778863851000,-243.802444,0.0003013,7]
[422353304,1778863851000,-13435.41232881,0.0003013,2]
[422353324,1778863851000,-151.0,0.0003013,7]
[422353312,1778863851000,-200.0,0.0003013,15]
[422353305,1778863851000,-204.84750702,0.0003013,2]
[422353284,1778863851000,-162.0,0.0003,14]
[422353297,1778863851000,-150.0,0.00030037,2]
[422353325,1778863851000,-151.0,0.0003013,7]
[422353281,1778863851000,-70092.61713071,0.0003,2]
[422353283,1778863851000,-200.0,0.0003,2]
[422353294,1778863851000,-150.0,0.00030037,2]
[422353282,1778863851000,-53874.19336559,0.0003,10]
[422353293,1778863851000,-150.0,0.00030037,2]
[422353285,1778863851000,-200.0,0.0003,2]
[422353287,1778863851000,-200.0,0.0003,2]
[422353289,1778863851000,-200.0,0.0003,2]
[422353290,1778863851000,-650.0,0.0003,2]
[422353288,1778863851000,-1500.0,0.0003,2]
[422353292,1778863851000,-150.0,0.00030037,2]
[422353291,1778863851000,-213.04921019,0.0003,3]
[422353286,1778863851000,-193.725,0.0003,22]
[422353295,1778863851000,-150.0,0.00030037,2]
[422353296,1778863851000,-150.0,0.00030037,2]
[422353303,1778863851000,-643.92403267,0.0003013,2]
[422353306,1778863851000,-300.0,0.0003013,30]
[422353299,1778863851000,-1000.0,0.0003005,7]
[422353302,1778863851000,-334266.32605072,0.0003013,7]
[422353298,1778863851000,-150.0,0.00030037,2]
[422353301,1778863851000,-202341.62736104,0.0003013,7]
[422353328,1778863851000,-243.802444,0.0003013,7]
[422353300,1778863851000,-2724.24,0.00030111,7]
[422353332,1778863851000,-151.0,0.0003013,7]
[422353359,1778863851000,-2000.0,0.00030137,7]
[422353360,1778863851000,-2000.0,0.00030137,7]
[422353361,1778863851000,-1933.17065798,0.00030137,7]
[422353362,1778863851000,-26976.37,0.00030137,120]
[422353363,1778863851000,-1000.0,0.00030137,30]
[422353375,1778863851000,-384.371464,0.00030137,7]
[422353364,1778863851000,-212.26986214,0.00030137,40]
[422353358,1778863851000,-2000.0,0.00030137,7]
[422353366,1778863851000,-2682.30672666,0.00030137,30]
[422353365,1778863851000,-151.19263811,0.00030137,5]
[422353357,1778863851000,-2000.0,0.00030137,7]
[422353367,1778863851000,-200.0,0.00030137,2]
[422353369,1778863851000,-324.801637,0.00030137,7]
[422353371,1778863851000,-324.801637,0.00030137,7]
[422353373,1778863851000,-324.801637,0.00030137,7]
[422353370,1778863851000,-254.81376594,0.00030137,120]
[422353372,1778863851000,-324.801637,0.00030137,7]
[422353374,1778863851000,-384.371464,0.00030137,7]
[422353376,1778863851000,-384.371464,0.00030137,7]
[422353377,1778863851000,-384.371464,0.00030137,7]
[422353379,1778863851000,-271.733561,0.00030137,7]
[422353330,1778863851000,-243.802444,0.0003013,7]
[422353368,1778863851000,-200.0,0.00030137,2]
[422353356,1778863851000,-2000.0,0.00030137,7]
[422353378,1778863851000,-151.0,0.00030137,7]
[422353353,1778863851000,-368.62,0.00030137,2]
[422353355,1778863851000,-1000.0,0.00030137,30]
[422353333,1778863851000,-197.207142,0.0003013,7]
[422353341,1778863851000,-415.59,0.00030136,8]
[422353331,1778863851000,-243.802444,0.0003013,7]
[422353334,1778863851000,-197.207142,0.0003013,7]
[422353335,1778863851000,-197.207142,0.0003013,7]
[422353339,1778863851000,-151.0,0.0003013,7]
[422353340,1778863851000,-301.159806,0.0003013,7]
[422353337,1778863851000,-197.207142,0.0003013,7]
[422353338,1778863851000,-151.0,0.0003013,7]
[422353336,1778863851000,-151.0,0.0003013,7]
[422353342,1778863851000,-415.6,0.00030136,8]
[422353345,1778863851000,-1000.0,0.00030136,14]
[422353343,1778863851000,-415.59,0.00030136,9]
[422353351,1778863851000,-576.38,0.00030137,2]
[422353347,1778863851000,-150.0,0.00030136,2]
[422353350,1778863851000,-151.0,0.00030137,7]
[422353348,1778863851000,-257.65774149,0.00030136,2]
[422353346,1778863851000,-150.0,0.00030136,2]
[422353352,1778863851000,-200.0,0.00030137,2]
[422353344,1778863851000,-415.59,0.00030136,10]
[422353349,1778863851000,-151.0,0.00030137,7]
[422353354,1778863851000,-1856.0,0.00030137,30]
[422353406,1778863852000,-178.43199846,0.000302,120]
[422353404,1778863852000,-15776.70609957,0.000302,2]
[422353409,1778863852000,-401.84,0.000302,2]
[422353405,1778863852000,-1518.3,0.000302,2]
[422353407,1778863852000,-2268.37,0.000302,14]
[422353408,1778863852000,-341.41,0.000302,7]
[422353410,1778863852000,-150.0,0.00030205,2]
[422353411,1778863852000,-501.46,0.00030237,7]
[422353417,1778863852000,-200.0,0.00030438,2]
[422353413,1778863852000,-167.12947964,0.00030289,2]
[422353416,1778863852000,-200.0,0.00030438,2]
[422353414,1778863852000,-173.73,0.00030411,120]
[422353415,1778863852000,-200.0,0.00030438,2]
[422353419,1778863852000,-2268.37,0.000305,14]
[422353418,1778863852000,-200.0,0.00030438,2]
[422353420,1778863852000,-721.0,0.00030559,30]
[422353403,1778863852000,-65961.1700136,0.00030141,2]
[422353421,1778863852000,-158.0,0.00030573,30]
[422353412,1778863852000,-1312.1,0.00030239,2]
[422353401,1778863852000,-4591.991607,0.00030141,2]
[422353389,1778863852000,-151.0,0.00030137,7]
[422353400,1778863852000,-13551.6905253,0.00030141,2]
[422353423,1778863852000,-3760.0,0.00030573,30]
[422353380,1778863852000,-300.0,0.00030137,5]
[422353381,1778863852000,-300.0,0.00030137,5]
[422353384,1778863852000,-300.0,0.00030137,5]
[422353383,1778863852000,-300.0,0.00030137,5]
[422353386,1778863852000,-151.0,0.00030137,7]
[422353390,1778863852000,-193.125092,0.00030137,7]
[422353382,1778863852000,-300.0,0.00030137,5]
[422353385,1778863852000,-151.0,0.00030137,7]
[422353402,1778863852000,-57333.8392866,0.00030141,2]
[422353387,1778863852000,-151.0,0.00030137,7]
[422353391,1778863852000,-200.0,0.00030137,2]
[422353393,1778863852000,-151.0,0.00030137,7]
[422353396,1778863852000,-2000.0,0.00030137,2]
[422353398,1778863852000,-160.0,0.00030137,3]
[422353395,1778863852000,-399.47915522,0.00030137,14]
[422353392,1778863852000,-151.0,0.00030137,7]
[422353397,1778863852000,-200.0,0.00030137,2]
[422353394,1778863852000,-151.0,0.00030137,7]
[422353399,1778863852000,-449.55680115,0.00030141,31]
[422353388,1778863852000,-151.0,0.00030137,7]
[422353422,1778863852000,-409.0,0.00030573,30]
[422353431,1778863852000,-1238.0,0.00030573,30]
[422353424,1778863852000,-3870.0,0.00030573,30]
[422353447,1778863852000,-200.0,0.00030743,2]
[422353446,1778863852000,-200.0,0.00030743,2]
[422353453,1778863852000,-208.38824723,0.00031,120]
[422353452,1778863852000,-2042.97,0.00031,7]
[422353459,1778863852000,-200.0,0.0003105,2]
[422353454,1778863852000,-250.0,0.00031,30]
[422353460,1778863852000,-200.0,0.0003105,2]
[422353455,1778863852000,-150.0,0.00031011,2]
[422353456,1778863852000,-371.22,0.00031039,10]
[422353458,1778863852000,-200.0,0.0003105,2]
[422353457,1778863852000,-3217.04672666,0.0003105,30]
[422353461,1778863852000,-200.0,0.0003105,2]
[422353463,1778863852000,-200.0,0.00031096,2]
[422353467,1778863852000,-1000.0,0.0003112,2]
[422353462,1778863852000,-255.02,0.00031081,120]
[422353425,1778863852000,-654.0,0.00030573,30]
[422353465,1778863852000,-1000.0,0.0003112,2]
[422353464,1778863852000,-2268.37,0.000311,14]
[422353466,1778863852000,-1000.0,0.0003112,2]
[422353443,1778863852000,-721.12765535,0.00030703,2]
[422353448,1778863852000,-250.0,0.000308,30]
[422353468,1778863852000,-1000.0,0.0003112,2]
[422353449,1778863852000,-2268.37,0.000308,14]
[422353451,1778863852000,-14279.85643941,0.00031,5]
[422353427,1778863852000,-1792.0,0.00030573,30]
[422353430,1778863852000,-289.0,0.00030573,30]
[422353432,1778863852000,-275.0,0.00030573,30]
[422353428,1778863852000,-935.0,0.00030573,30]
[422353429,1778863852000,-753.0,0.00030573,30]
[422353433,1778863852000,-500.0,0.00030576,60]
[422353439,1778863852000,-10274.69706239,0.0003069,2]
[422353435,1778863852000,-1100.81,0.000306,7]
[422353426,1778863852000,-789.0,0.00030573,30]
[422353440,1778863852000,-917.21586982,0.000307,2]
[422353437,1778863852000,-5000.0,0.00030642,7]
[422353444,1778863852000,-200.0,0.00030743,2]
[422353442,1778863852000,-917.21586981,0.000307,2]
[422353445,1778863852000,-200.0,0.00030743,2]
[422353441,1778863852000,-917.21586981,0.000307,2]
[422353434,1778863852000,-600.0,0.00030576,60]
[422353436,1778863852000,-200.44,0.000306,4]
[422353438,1778863852000,-3829.00456512,0.0003065,2]
[422353450,1778863852000,-433.26330133,0.0003084,2]
[422353489,1778863853000,-5000.0,0.00031351,10]
[422353494,1778863853000,-2268.37,0.000314,14]
[422353488,1778863853000,-3631.0,0.000313,2]
[422353490,1778863853000,-200.0,0.00031361,2]
[422353491,1778863853000,-200.0,0.00031361,2]
[422353493,1778863853000,-200.0,0.00031361,2]
[422353492,1778863853000,-200.0,0.00031361,2]
[422353498,1778863853000,-12688.03,0.00031519,7]
[422353497,1778863853000,-1000.0,0.000315,7]
[422353496,1778863853000,-150.0,0.000315,2]
[422353500,1778863853000,-179.49,0.00031539,4]
[422353499,1778863853000,-179.48,0.00031539,4]
[422353501,1778863853000,-721.0,0.00031559,30]
[422353486,1778863853000,-1270.0,0.000313,2]
[422353495,1778863853000,-200.46090113,0.000315,2]
[422353482,1778863853000,-152.0,0.0003122,3]
[422353476,1778863853000,-1100.81,0.000312,7]
[422353485,1778863853000,-926.0,0.000313,2]
[422353469,1778863853000,-1000.0,0.0003112,2]
[422353471,1778863853000,-1000.0,0.00031121,2]
[422353470,1778863853000,-1000.0,0.00031121,2]
[422353473,1778863853000,-1000.0,0.00031121,2]
[422353472,1778863853000,-1000.0,0.00031121,2]
[422353474,1778863853000,-1000.0,0.00031121,2]
[422353475,1778863853000,-180.75,0.000312,7]
[422353479,1778863853000,-178.728591,0.000312,7]
[422353477,1778863853000,-368.699999,0.000312,7]
[422353503,1778863853000,-409.0,0.00031573,30]
[422353480,1778863853000,-163.0,0.00031212,3]
[422353478,1778863853000,-180.122727,0.000312,7]
[422353481,1778863853000,-152.0,0.0003122,9]
[422353487,1778863853000,-930.0,0.000313,2]
[422353483,1778863853000,-1354.0,0.000313,2]
[422353484,1778863853000,-625.0,0.000313,2]
[422353502,1778863853000,-158.0,0.00031573,30]
[422353530,1778863853000,-151.0,0.000316,7]
[422353507,1778863853000,-789.0,0.00031573,30]
[422353524,1778863853000,-209.600876,0.000316,7]
[422353526,1778863853000,-209.600876,0.000316,7]
[422353525,1778863853000,-209.600876,0.000316,7]
[422353528,1778863853000,-151.0,0.000316,7]
[422353529,1778863853000,-151.0,0.000316,7]
[422353531,1778863853000,-489.302038,0.000316,7]
[422353534,1778863853000,-489.302038,0.000316,7]
[422353532,1778863853000,-151.0,0.000316,7]
[422353533,1778863853000,-489.302038,0.000316,7]
[422353535,1778863853000,-489.302038,0.000316,7]
[422353539,1778863853000,-150.0,0.00031716,2]
[422353536,1778863853000,-326.88,0.000316,2]
[422353537,1778863853000,-5000.0,0.00031663,7]
[422353540,1778863853000,-3572.19672666,0.00031963,30]
[422353504,1778863853000,-3760.0,0.00031573,30]
[422353527,1778863853000,-151.0,0.000316,7]
[422353519,1778863853000,-2073.56,0.000316,2]
[422353538,1778863853000,-163.0,0.0003168,3]
[422353522,1778863853000,-217.125142,0.000316,7]
[422353523,1778863853000,-209.600876,0.000316,7]
[422353506,1778863853000,-654.0,0.00031573,30]
[422353509,1778863853000,-935.0,0.00031573,30]
[422353517,1778863853000,-3726.18,0.000316,2]
[422353505,1778863853000,-3870.0,0.00031573,30]
[422353508,1778863853000,-1792.0,0.00031573,30]
[422353511,1778863853000,-289.0,0.00031573,30]
[422353510,1778863853000,-753.0,0.00031573,30]
[422353515,1778863853000,-1870.08,0.000316,2]
[422353516,1778863853000,-3060.08,0.000316,2]
[422353514,1778863853000,-16249.31,0.000316,2]
[422353512,1778863853000,-1238.0,0.00031573,30]
[422353518,1778863853000,-745.24,0.000316,2]
[422353521,1778863853000,-151.0,0.000316,7]
[422353513,1778863853000,-275.0,0.00031573,30]
[422353520,1778863853000,-11501.2,0.000316,2]
[422353580,1778863854000,-3870.0,0.00032573,30]
[422353576,1778863854000,-150.0,0.00032562,2]
[422353578,1778863854000,-409.0,0.00032573,30]
[422353571,1778863854000,-184.036363,0.000323,12]
[422353575,1778863854000,-721.0,0.00032559,30]
[422353572,1778863854000,-10000.0,0.00032463,7]
[422353569,1778863854000,-908.44583239,0.000323,2]
[422353573,1778863854000,-5000.0,0.000325,7]
[422353590,1778863854000,-3891.78,0.0003264,7]
[422353577,1778863854000,-158.0,0.00032573,30]
[422353591,1778863854000,-1062.0,0.000327,60]
[422353585,1778863854000,-753.0,0.00032573,30]
[422353581,1778863854000,-654.0,0.00032573,30]
[422353584,1778863854000,-935.0,0.00032573,30]
[422353579,1778863854000,-3760.0,0.00032573,30]
[422353582,1778863854000,-789.0,0.00032573,30]
[422353587,1778863854000,-1238.0,0.00032573,30]
[422353586,1778863854000,-289.0,0.00032573,30]
[422353589,1778863854000,-152.0,0.00032583,10]
[422353588,1778863854000,-275.0,0.00032573,30]
[422353593,1778863854000,-165.0,0.00032755,11]
[422353592,1778863854000,-163.0,0.00032755,11]
[422353574,1778863854000,-1000.0,0.000325,2]
[422353583,1778863854000,-1792.0,0.00032573,30]
[422353568,1778863854000,-5000.0,0.00032282,7]
[422353550,1778863854000,-179.02537773,0.00032,120]
[422353562,1778863854000,-1312.1,0.0003221,5]
[422353544,1778863854000,-1100.81,0.00032,7]
[422353541,1778863854000,-162.0,0.00031969,14]
[422353542,1778863854000,-1760.2559293,0.00032,2]
[422353543,1778863854000,-177.47449092,0.00032,120]
[422353546,1778863854000,-182.06912323,0.00032,120]
[422353545,1778863854000,-2268.37,0.00032,14]
[422353547,1778863854000,-222.07622707,0.00032,120]
[422353548,1778863854000,-256.19375938,0.00032,120]
[422353549,1778863854000,-184.95234541,0.00032,120]
[422353594,1778863854000,-2824.69477737,0.00032781,7]
[422353555,1778863854000,-1244.32187966,0.00032,120]
[422353554,1778863854000,-1737.45964695,0.00032,120]
[422353551,1778863854000,-187.00265983,0.00032,120]
[422353552,1778863854000,-1278.26250605,0.00032,120]
[422353553,1778863854000,-249.23263071,0.00032,120]
[422353556,1778863854000,-700.0,0.00032,2]
[422353558,1778863854000,-151.0,0.00032,7]
[422353564,1778863854000,-600.0,0.0003222,60]
[422353565,1778863854000,-366.95497307,0.00032222,30]
[422353567,1778863854000,-318.672209,0.00032277,12]
[422353561,1778863854000,-334.17639749,0.00032185,7]
[422353557,1778863854000,-214.997284,0.00032,10]
[422353566,1778863854000,-180.75,0.00032277,12]
[422353559,1778863854000,-151.0,0.00032,7]
[422353560,1778863854000,-200.0,0.00032055,2]
[422353563,1778863854000,-500.0,0.0003222,60]
[422353595,1778863854000,-67094.74112298,0.00032781,7]
[422353570,1778863854000,-183.40909,0.000323,12]
[422353598,1778863854000,-7800.93367608,0.00032781,7]
[422353626,1778863854000,-150.0,0.00032877,30]
[422353630,1778863854000,-150.0,0.00032877,30]
[422353628,1778863854000,-150.0,0.00032877,30]
[422353629,1778863854000,-150.0,0.00032877,30]
[422353633,1778863854000,-150.0,0.00032877,30]
[422353632,1778863854000,-150.0,0.00032877,30]
[422353634,1778863854000,-150.0,0.00032877,30]
[422353636,1778863854000,-500.0,0.00032877,2]
[422353635,1778863854000,-271.0,0.00032877,30]
[422353637,1778863854000,-500.0,0.00032877,2]
[422353638,1778863854000,-500.0,0.00032877,2]
[422353627,1778863854000,-150.0,0.00032877,30]
[422353639,1778863854000,-500.0,0.00032877,2]
[422353644,1778863854000,-960.86781776,0.00032877,60]
[422353640,1778863854000,-414.54634519,0.00032877,2]
[422353643,1778863854000,-500.0,0.00032877,2]
[422353642,1778863854000,-500.0,0.00032877,2]
[422353646,1778863854000,-500.0,0.00032877,10]
[422353645,1778863854000,-3927.33835419,0.00032877,30]
[422353650,1778863854000,-12946.19767073,0.000329,120]
[422353647,1778863854000,-500.0,0.00032877,10]
[422353649,1778863854000,-290.13,0.000329,120]
[422353648,1778863854000,-177.92582209,0.00032877,10]
[422353596,1778863854000,-2164.72550862,0.00032781,7]
[422353641,1778863854000,-860.0,0.00032877,120]
[422353625,1778863854000,-150.0,0.00032877,30]
[422353631,1778863854000,-150.0,0.00032877,30]
[422353623,1778863854000,-150.0,0.00032877,30]
[422353601,1778863854000,-300.0,0.0003287,120]
[422353600,1778863854000,-1100.81,0.000328,7]
[422353597,1778863854000,-34538.07354839,0.00032781,7]
[422353599,1778863854000,-4909.25193428,0.000328,2]
[422353624,1778863854000,-150.0,0.00032877,30]
[422353602,1778863854000,-404.27243303,0.0003287,120]
[422353606,1778863854000,-151.0,0.00032877,7]
[422353605,1778863854000,-576.38,0.00032877,2]
[422353609,1778863854000,-151.0,0.00032877,7]
[422353607,1778863854000,-151.0,0.00032877,7]
[422353610,1778863854000,-151.0,0.00032877,7]
[422353604,1778863854000,-349.99,0.00032877,2]
[422353608,1778863854000,-151.0,0.00032877,7]
[422353603,1778863854000,-1002.05,0.00032877,2]
[422353611,1778863854000,-151.0,0.00032877,7]
[422353612,1778863854000,-500.0,0.00032877,30]
[422353620,1778863854000,-150.0,0.00032877,30]
[422353614,1778863854000,-500.0,0.00032877,30]
[422353619,1778863854000,-150.0,0.00032877,30]
[422353618,1778863854000,-150.0,0.00032877,30]
[422353622,1778863854000,-150.0,0.00032877,30]
[422353615,1778863854000,-518.0,0.00032877,30]
[422353617,1778863854000,-150.0,0.00032877,30]
[422353616,1778863854000,-150.0,0.00032877,30]
[422353613,1778863854000,-500.0,0.00032877,30]
[422353621,1778863854000,-150.0,0.00032877,30]
[422353668,1778863855000,-222.07622707,0.00033,120]
[422353665,1778863855000,-10001.0,0.00033,10]
[422353664,1778863855000,-4266.0,0.00033,30]
[422353663,1778863855000,-5193.78899413,0.00033,2]
[422353661,1778863855000,-477.59411947,0.00033,30]
[422353666,1778863855000,-421.463837,0.00033,14]
[422353662,1778863855000,-46626.10418927,0.00033,3]
[422353659,1778863855000,-37974.02099631,0.00033,3]
[422353655,1778863855000,-437.4,0.00032927,2]
[422353658,1778863855000,-601.02425971,0.00033,7]
[422353656,1778863855000,-500.0,0.00032985,2]
[422353657,1778863855000,-52153.78750436,0.00033,2]
[422353651,1778863855000,-152.69857013,0.000329,120]
[422353652,1778863855000,-250.0,0.00032916,7]
[422353654,1778863855000,-250.0,0.00032916,7]
[422353653,1778863855000,-250.0,0.00032916,7]
[422353675,1778863855000,-1737.45964695,0.00033,120]
[422353660,1778863855000,-175.91106121,0.00033,60]
[422353672,1778863855000,-187.00265983,0.00033,120]
[422353669,1778863855000,-256.19375938,0.00033,120]
[422353671,1778863855000,-179.02537773,0.00033,120]
[422353667,1778863855000,-182.06912323,0.00033,120]
[422353690,1778863855000,-348.5901072,0.00033251,23]
[422353688,1778863855000,-42504.0,0.00033211,30]
[422353683,1778863855000,-5000.0,0.00033093,10]
[422353687,1778863855000,-797.97,0.00033191,2]
[422353681,1778863855000,-1584.0,0.00033075,11]
[422353686,1778863855000,-42504.0,0.00033159,30]
[422353684,1778863855000,-42504.0,0.00033106,30]
[422353682,1778863855000,-611.0,0.00033075,11]
[422353685,1778863855000,-49477.0,0.00033148,30]
[422353679,1778863855000,-160.0,0.00033063,3]
[422353678,1778863855000,-42504.0,0.00033053,30]
[422353674,1778863855000,-249.23263071,0.00033,120]
[422353673,1778863855000,-1278.26250605,0.00033,120]
[422353677,1778863855000,-350.0,0.00033014,5]
[422353670,1778863855000,-184.95234541,0.00033,120]
[422353680,1778863855000,-49477.0,0.00033074,30]
[422353676,1778863855000,-1244.32187966,0.00033,120]
[422353794,1778863856000,-16249.31,0.000348,2]
[422353796,1778863856000,-3060.08,0.000348,2]
[422353798,1778863856000,-745.24,0.000348,2]
[422353788,1778863856000,-289.0,0.00034573,30]
[422353793,1778863856000,-1500.0,0.00034795,2]
[422353799,1778863856000,-2073.56,0.000348,2]
[422353795,1778863856000,-1870.08,0.000348,2]
[422353791,1778863856000,-200.0,0.00034575,120]
[422353770,1778863856000,-358.824159,0.000345,23]
[422353811,1778863856000,-500.0,0.00034941,120]
[422353801,1778863856000,-171.0,0.00034828,2]
[422353807,1778863856000,-150.0,0.00034887,2]
[422353802,1778863856000,-1906.97,0.00034836,120]
[422353809,1778863856000,-350.0,0.00034931,5]
[422353806,1778863856000,-150.0,0.00034887,2]
[422353805,1778863856000,-934.42,0.00034836,120]
[422353804,1778863856000,-545.08,0.00034836,120]
[422353790,1778863856000,-275.0,0.00034573,30]
[422353803,1778863856000,-1334.88,0.00034836,120]
[422353808,1778863856000,-151.8,0.000349,120]
[422353812,1778863856000,-500.0,0.00034941,120]
[422353792,1778863856000,-545.08,0.00034661,120]
[422353782,1778863856000,-3870.0,0.00034573,30]
[422353789,1778863856000,-1238.0,0.00034573,30]
[422353771,1778863856000,-163.0,0.00034503,11]
[422353766,1778863856000,-318.672209,0.00034431,22]
[422353769,1778863856000,-545.08,0.00034486,120]
[422353773,1778863856000,-345.42,0.00034544,60]
[422353768,1778863856000,-1153.47818842,0.00034481,2]
[422353772,1778863856000,-163.0,0.00034503,11]
[422353767,1778863856000,-5000.0,0.0003445,10]
[422353774,1778863856000,-476.53,0.00034544,60]
[422353777,1778863856000,-2930.59,0.00034544,60]
[422353776,1778863856000,-1591.79,0.00034544,60]
[422353779,1778863856000,-158.0,0.00034573,30]
[422353778,1778863856000,-721.0,0.00034559,30]
[422353780,1778863856000,-409.0,0.00034573,30]
[422353775,1778863856000,-4630.77,0.00034544,60]
[422353787,1778863856000,-753.0,0.00034573,30]
[422353786,1778863856000,-935.0,0.00034573,30]
[422353785,1778863856000,-1792.0,0.00034573,30]
[422353784,1778863856000,-789.0,0.00034573,30]
[422353783,1778863856000,-654.0,0.00034573,30]
[422353781,1778863856000,-3760.0,0.00034573,30]
[422353797,1778863856000,-3726.18,0.000348,2]
[422353800,1778863856000,-11501.2,0.000348,2]
[422353814,1778863856000,-322.1642356,0.00034941,120]
[422353810,1778863856000,-194.186801,0.00034941,120]
[422353824,1778863856000,-369.97847963,0.00034951,3]
[422353841,1778863856000,-256.19375938,0.00035,120]
[422353840,1778863856000,-2268.37,0.00035,14]
[422353839,1778863856000,-1100.81,0.00035,30]
[422353842,1778863856000,-184.95234541,0.00035,120]
[422353849,1778863856000,-2042.97,0.00035,30]
[422353844,1778863856000,-1278.26250605,0.00035,120]
[422353843,1778863856000,-187.00265983,0.00035,120]
[422353845,1778863856000,-249.23263071,0.00035,120]
[422353850,1778863856000,-158.0,0.00035,120]
[422353852,1778863856000,-474.91,0.00035,120]
[422353854,1778863856000,-545.08,0.00035011,120]
[422353856,1778863856000,-200.44,0.000353,10]
[422353857,1778863856000,-152.0,0.0003531,12]
[422353855,1778863856000,-1500.0,0.000352,7]
[422353853,1778863856000,-501.516,0.00035,120]
[422353851,1778863856000,-15002.0,0.00035,10]
[422353858,1778863856000,-163.0,0.00035312,11]
[422353859,1778863856000,-12688.03,0.00035359,30]
[422353861,1778863856000,-3014.21294035,0.00035415,10]
[422353860,1778863856000,-163.0,0.00035381,11]
[422353822,1778863856000,-179.12123629,0.00034951,3]
[422353846,1778863856000,-1737.45964695,0.00035,120]
[422353837,1778863856000,-2187.04412676,0.00035,7]
[422353828,1778863856000,-160.151,0.00034967,2]
[422353847,1778863856000,-1244.32187966,0.00035,120]
[422353823,1778863856000,-216.48494516,0.00034951,3]
[422353848,1778863856000,-163.38,0.00035,2]
[422353813,1778863856000,-606.8258946,0.00034941,120]
[422353815,1778863856000,-512.9091593,0.00034941,120]
[422353818,1778863856000,-500.0,0.00034941,120]
[422353817,1778863856000,-725.0974236,0.00034941,120]
[422353821,1778863856000,-428.6420915,0.00034941,120]
[422353820,1778863856000,-356.2997268,0.00034941,120]
[422353819,1778863856000,-961.7225395,0.00034941,120]
[422353825,1778863856000,-479.91391853,0.00034951,3]
[422353816,1778863856000,-500.0,0.00034941,120]
[422353832,1778863856000,-252.6705165,0.00035,30]
[422353827,1778863856000,-199.0008109,0.00034951,3]
[422353838,1778863856000,-1000.0,0.00035,60]
[422353833,1778863856000,-3027.54238169,0.00035,120]
[422353836,1778863856000,-2308.70729794,0.00035,30]
[422353835,1778863856000,-702.0,0.00035,90]
[422353830,1778863856000,-5000.0,0.00034987,2]
[422353831,1778863856000,-1800.85,0.00034988,2]
[422353826,1778863856000,-174.75020273,0.00034951,3]
[422353829,1778863856000,-158.66206678,0.00034977,60]
[422353834,1778863856000,-5000.0,0.00035,10]
[422353876,1778863857000,-3760.0,0.00035573,30]
[422353877,1778863857000,-3870.0,0.00035573,30]
[422353885,1778863857000,-275.0,0.00035573,30]
[422353880,1778863857000,-1792.0,0.00035573,30]
[422353878,1778863857000,-654.0,0.00035573,30]
[422353882,1778863857000,-753.0,0.00035573,30]
[422353890,1778863857000,-500.0,0.00035616,120]
[422353881,1778863857000,-935.0,0.00035573,30]
[422353887,1778863857000,-184.036363,0.000356,28]